[Event "*** Titled Tuesday Blitz"]
[Site "Chess.com"]
[Date "2021.04.06"]
[Round "8"]
[White "ega2006"]
[Black "hypert"]
[Result "0-1"]
[WhiteElo "2411"]
[BlackElo "2571"]
[TimeControl "180+1"]
[EndTime "11:29:43 PDT"]
[Termination "hypert won on time"]

1. e4 {[%clk 0:03:00.9]} 1... c5 {[%clk 0:03:00.3]} 2. Nf3 {[%clk 0:03:00.5]}
2... Nc6 {[%clk 0:03:00.9]} 3. Bb5 {[%clk 0:03:00]} 3... e6 {[%clk 0:03:01.4]}
4. O-O {[%clk 0:02:59.4]} 4... Nge7 {[%clk 0:03:01.6]} 5. Re1 {[%clk 0:02:59.4]}
5... Nd4 {[%clk 0:03:01]} 6. Bf1 {[%clk 0:02:42.3]} 6... Nec6 {[%clk 0:02:57.6]}
7. c3 {[%clk 0:02:42.7]} 7... Nxf3+ {[%clk 0:02:56.9]} 8. Qxf3 {[%clk
0:02:43.6]} 8... Be7 {[%clk 0:02:56.8]} 9. d3 {[%clk 0:02:41.6]} 9... O-O {[%clk
0:02:56.2]} 10. Nd2 {[%clk 0:02:37.4]} 10... d5 {[%clk 0:02:55.7]} 11. g3 {[%clk
0:02:36.9]} 11... b5 {[%clk 0:02:42.8]} 12. a4 {[%clk 0:02:34.7]} 12... b4
{[%clk 0:02:42]} 13. exd5 {[%clk 0:02:28.1]} 13... exd5 {[%clk 0:02:35.5]} 14.
Bg2 {[%clk 0:02:28]} 14... Be6 {[%clk 0:02:34.6]} 15. Nf1 {[%clk 0:02:20.5]}
15... bxc3 {[%clk 0:02:17.6]} 16. bxc3 {[%clk 0:02:15.8]} 16... Bf6 {[%clk
0:02:17.5]} 17. Bd2 {[%clk 0:02:15.5]} 17... Na5 {[%clk 0:01:53.8]} 18. Rab1
{[%clk 0:02:11.3]} 18... Rb8 {[%clk 0:01:52]} 19. Rxb8 {[%clk 0:01:31.1]} 19...
Qxb8 {[%clk 0:01:52.9]} 20. c4 {[%clk 0:01:31.5]} 20... Nb3 {[%clk 0:01:52.3]}
21. cxd5 {[%clk 0:01:31.4]} 21... Nd4 {[%clk 0:01:42.1]} 22. Qf4 {[%clk
0:01:26.4]} 22... Bd7 {[%clk 0:01:38.6]} 23. Qxb8 {[%clk 0:01:17.5]} 23... Rxb8
{[%clk 0:01:39.5]} 24. Ne3 {[%clk 0:01:17.7]} 24... Rb2 {[%clk 0:01:19.3]} 25.
Nc4 {[%clk 0:01:16.9]} 25... Ra2 {[%clk 0:01:10.9]} 26. a5 {[%clk 0:01:13.2]}
26... h5 {[%clk 0:01:04.9]} 27. d6 {[%clk 0:00:58.9]} 27... Nb3 {[%clk
0:00:56.8]} 28. Be3 {[%clk 0:00:46.9]} 28... Nxa5 {[%clk 0:00:53]} 29. Bxc5
{[%clk 0:00:46.6]} 29... Nb3 {[%clk 0:00:47.8]} 30. Be3 {[%clk 0:00:31.4]} 30...
Ra6 {[%clk 0:00:47.1]} 31. Bd5 {[%clk 0:00:28]} 31... Nd4 {[%clk 0:00:31.8]} 32.
Rb1 {[%clk 0:00:26.8]} 32... Bh3 {[%clk 0:00:29.2]} 33. Bg2 {[%clk 0:00:22.2]}
33... Bf5 {[%clk 0:00:25.3]} 34. Be4 {[%clk 0:00:11.5]} 34... Bxe4 {[%clk
0:00:20]} 35. dxe4 {[%clk 0:00:11.2]} 35... Rc6 {[%clk 0:00:20.9]} 36. e5 {[%clk
0:00:05.2]} 36... Nf3+ {[%clk 0:00:17.3]} 37. Kg2 {[%clk 0:00:05.5]} 37... Nxe5
{[%clk 0:00:17.3]} 38. Nxe5 {[%clk 0:00:05.6]} 38... Bxe5 {[%clk 0:00:18.2]} 39.
d7 {[%clk 0:00:05.9]} 39... Bc7 {[%clk 0:00:16.8]} 40. Rb8+ {[%clk 0:00:03]}
40... Kh7 {[%clk 0:00:15]} 41. Rc8 {[%clk 0:00:02.2]} 41... Rd6 {[%clk
0:00:13.6]} 42. Rxc7 {[%clk 0:00:02.3]} 42... a5 {[%clk 0:00:14.2]} 43. Ra7
{[%clk 0:00:01.9]} 43... a4 {[%clk 0:00:12.8]} 44. Bb6 {[%clk 0:00:02.4]} 44...
a3 {[%clk 0:00:12.3]} 45. d8=Q {[%clk 0:00:02.5]} 45... Rxb6 {[%clk 0:00:12.4]}
46. Qd7 {[%clk 0:00:01.1]} 46... a2 {[%clk 0:00:13.3]} 47. Qxf7 {[%clk
0:00:01.3]} 47... Rg6 {[%clk 0:00:12.8]} 0-1

[Event "*** Titled Tuesday Blitz"]
[Site "Chess.com"]
[Date "2021.04.06"]
[Round "8"]
[White "Lion-Al-Messi"]
[Black "GMRafpig"]
[Result "0-1"]
[WhiteElo "2494"]
[BlackElo "2610"]
[TimeControl "180+1"]
[EndTime "11:29:46 PDT"]
[Termination "GMRafpig won by resignation"]

1. d4 {[%clk 0:02:58.8]} 1... Nf6 {[%clk 0:02:58.3]} 2. Nf3 {[%clk 0:02:59.3]}
2... e6 {[%clk 0:02:58.1]} 3. Nc3 {[%clk 0:02:59.1]} 3... d5 {[%clk 0:02:55.4]}
4. Bg5 {[%clk 0:02:58.5]} 4... Nbd7 {[%clk 0:02:41.4]} 5. e4 {[%clk 0:02:55.6]}
5... h6 {[%clk 0:02:39.7]} 6. Bxf6 {[%clk 0:02:51.7]} 6... Nxf6 {[%clk
0:02:39.2]} 7. e5 {[%clk 0:02:51.8]} 7... Nd7 {[%clk 0:02:39.2]} 8. Bd3 {[%clk
0:02:50.7]} 8... c5 {[%clk 0:02:38.3]} 9. Nb5 {[%clk 0:02:39.7]} 9... a6 {[%clk
0:02:35.5]} 10. Nd6+ {[%clk 0:02:34.5]} 10... Bxd6 {[%clk 0:02:35.4]} 11. exd6
{[%clk 0:02:35.4]} 11... c4 {[%clk 0:02:30.5]} 12. Be2 {[%clk 0:02:33.2]} 12...
Nf6 {[%clk 0:02:25.5]} 13. O-O {[%clk 0:02:30.5]} 13... Qxd6 {[%clk 0:02:24.8]}
14. Ne5 {[%clk 0:02:30.8]} 14... O-O {[%clk 0:02:22.3]} 15. f4 {[%clk
0:02:31.1]} 15... Ne4 {[%clk 0:02:20.8]} 16. Bf3 {[%clk 0:02:30.6]} 16... b5
{[%clk 0:02:18.2]} 17. Bxe4 {[%clk 0:02:29.7]} 17... dxe4 {[%clk 0:02:17.8]} 18.
c3 {[%clk 0:02:29.6]} 18... Bb7 {[%clk 0:02:07.5]} 19. Qd2 {[%clk 0:02:29.3]}
19... Kh7 {[%clk 0:02:03.4]} 20. Rae1 {[%clk 0:02:28.9]} 20... f6 {[%clk
0:02:02.7]} 21. Ng4 {[%clk 0:02:28.4]} 21... Rad8 {[%clk 0:02:00.3]} 22. f5
{[%clk 0:02:24.5]} 22... e5 {[%clk 0:01:53.7]} 23. Rd1 {[%clk 0:02:11]} 23...
exd4 {[%clk 0:01:51.5]} 24. cxd4 {[%clk 0:02:11.9]} 24... Rfe8 {[%clk
0:01:48.3]} 25. Ne3 {[%clk 0:02:11.8]} 25... Rd7 {[%clk 0:01:43]} 26. g3 {[%clk
0:02:11.3]} 26... Red8 {[%clk 0:01:41.9]} 27. Rf4 {[%clk 0:02:11.2]} 27... Qxd4
{[%clk 0:01:34.4]} 28. Qe2 {[%clk 0:01:52.9]} 28... Qc5 {[%clk 0:01:16.9]} 29.
Re1 {[%clk 0:01:34.2]} 29... Rd3 {[%clk 0:01:06.6]} 30. Rh4 {[%clk 0:01:32.6]}
30... Bc6 {[%clk 0:00:47.9]} 31. Qf2 {[%clk 0:00:44]} 31... Rd2 {[%clk
0:00:35.9]} 32. Qf4 {[%clk 0:00:43.1]} 32... Rd1 {[%clk 0:00:33.9]} 33. Rxd1
{[%clk 0:00:39.2]} 33... Rxd1+ {[%clk 0:00:33.7]} 34. Kg2 {[%clk 0:00:39.7]}
34... Rd3 {[%clk 0:00:31.7]} 35. Ng4 {[%clk 0:00:38.4]} 35... e3+ {[%clk
0:00:31.4]} 36. Kh3 {[%clk 0:00:38.3]} 36... Qf8 {[%clk 0:00:29.9]} 37. Qc7
{[%clk 0:00:32.8]} 37... Bd7 {[%clk 0:00:25]} 38. Nxe3 {[%clk 0:00:32.9]} 38...
Rxe3 {[%clk 0:00:22]} 39. Qxd7 {[%clk 0:00:32.7]} 39... Qe7 {[%clk 0:00:22.4]}
40. Qd4 {[%clk 0:00:22.2]} 40... Re2 {[%clk 0:00:21.8]} 41. Qg4 {[%clk
0:00:19.8]} 41... Qb7 {[%clk 0:00:20.5]} 42. Qg6+ {[%clk 0:00:19]} 42... Kg8
{[%clk 0:00:20.7]} 43. Rd4 {[%clk 0:00:09]} 43... Qg2+ {[%clk 0:00:20.1]} 44.
Kh4 {[%clk 0:00:09.2]} 44... Qxh2+ {[%clk 0:00:16.9]} 45. Kg4 {[%clk 0:00:09]}
45... h5+ {[%clk 0:00:17.1]} 46. Qxh5 {[%clk 0:00:08.9]} 46... Qxh5+ {[%clk
0:00:15.8]} 47. Kxh5 {[%clk 0:00:09.8]} 47... Kh7 {[%clk 0:00:16]} 48. Rh4
{[%clk 0:00:03.7]} 48... Rxb2 {[%clk 0:00:14.4]} 49. Kg4+ {[%clk 0:00:03.3]}
49... Kg8 {[%clk 0:00:14.7]} 0-1

[Event "*** Titled Tuesday Blitz"]
[Site "Chess.com"]
[Date "2021.04.06"]
[Round "8"]
[White "Valeron87"]
[Black "zala02"]
[Result "0-1"]
[WhiteElo "2259"]
[BlackElo "2165"]
[TimeControl "180+1"]
[EndTime "11:29:46 PDT"]
[Termination "zala02 won on time"]

1. e4 {[%clk 0:03:00.9]} 1... e5 {[%clk 0:02:59.1]} 2. Nf3 {[%clk 0:03:00]} 2...
Nc6 {[%clk 0:02:59.1]} 3. Nc3 {[%clk 0:02:58.7]} 3... Nf6 {[%clk 0:02:58.7]} 4.
g3 {[%clk 0:02:57.8]} 4... Bb4 {[%clk 0:02:55.3]} 5. Bg2 {[%clk 0:02:57]} 5...
d6 {[%clk 0:02:53.2]} 6. d3 {[%clk 0:02:45.9]} 6... O-O {[%clk 0:02:52.8]} 7.
O-O {[%clk 0:02:44.4]} 7... Bg4 {[%clk 0:02:46.6]} 8. h3 {[%clk 0:02:43.7]} 8...
Be6 {[%clk 0:02:46.3]} 9. Ng5 {[%clk 0:02:40.6]} 9... Qd7 {[%clk 0:02:17.8]} 10.
Kh2 {[%clk 0:02:37.1]} 10... h6 {[%clk 0:02:15.6]} 11. Nxe6 {[%clk 0:02:25.3]}
11... fxe6 {[%clk 0:02:16.5]} 12. Ne2 {[%clk 0:02:19.4]} 12... Rf7 {[%clk
0:02:14.5]} 13. Be3 {[%clk 0:02:15.2]} 13... Ba5 {[%clk 0:02:09.5]} 14. d4
{[%clk 0:02:04.4]} 14... exd4 {[%clk 0:02:05.7]} 15. Nxd4 {[%clk 0:02:04.3]}
15... e5 {[%clk 0:02:04.9]} 16. Nf5 {[%clk 0:02:02.9]} 16... Bb6 {[%clk
0:02:03.8]} 17. Bxb6 {[%clk 0:01:48.6]} 17... axb6 {[%clk 0:02:04.7]} 18. Ne3
{[%clk 0:01:48.2]} 18... Kh7 {[%clk 0:02:00.7]} 19. a4 {[%clk 0:01:46.2]} 19...
Nd4 {[%clk 0:01:59.1]} 20. c3 {[%clk 0:01:45]} 20... Ne6 {[%clk 0:01:57.3]} 21.
f4 {[%clk 0:01:39.3]} 21... Nc5 {[%clk 0:01:55.6]} 22. b4 {[%clk 0:00:50.1]}
22... Nxa4 {[%clk 0:01:48.9]} 23. Qc2 {[%clk 0:00:49.9]} 23... b5 {[%clk
0:01:45.5]} 24. Rad1 {[%clk 0:00:46]} 24... Qc6 {[%clk 0:01:39.2]} 25. Nd5
{[%clk 0:00:43.6]} 25... Kh8 {[%clk 0:01:28.5]} 26. fxe5 {[%clk 0:00:42.5]}
26... dxe5 {[%clk 0:01:22.6]} 27. Rf5 {[%clk 0:00:40.8]} 27... Raf8 {[%clk
0:01:15.4]} 28. Rdf1 {[%clk 0:00:39.7]} 28... Nb6 {[%clk 0:01:13.4]} 29. Qf2
{[%clk 0:00:24.3]} 29... Nbxd5 {[%clk 0:01:02.9]} 30. exd5 {[%clk 0:00:23.6]}
30... Qxc3 {[%clk 0:01:02.4]} 31. Qe2 {[%clk 0:00:13.9]} 31... Qxb4 {[%clk
0:00:58.8]} 32. Qxe5 {[%clk 0:00:13.6]} 32... Qe7 {[%clk 0:00:54.2]} 33. Qb2
{[%clk 0:00:11.8]} 33... b4 {[%clk 0:00:50.1]} 34. R5f4 {[%clk 0:00:10.4]} 34...
Qd6 {[%clk 0:00:49.8]} 35. Qxb4 {[%clk 0:00:09.3]} 35... Qxb4 {[%clk 0:00:47.2]}
36. Rxb4 {[%clk 0:00:10.2]} 36... b6 {[%clk 0:00:47.3]} 37. d6 {[%clk
0:00:08.8]} 37... cxd6 {[%clk 0:00:42.2]} 38. Rxb6 {[%clk 0:00:09.3]} 38... d5
{[%clk 0:00:39.9]} 39. Rc1 {[%clk 0:00:08.2]} 39... Kh7 {[%clk 0:00:36]} 40. Rd6
{[%clk 0:00:08]} 40... Re7 {[%clk 0:00:27.2]} 41. Rc2 {[%clk 0:00:06.9]} 41...
Re5 {[%clk 0:00:25.2]} 42. Rd2 {[%clk 0:00:05.8]} 42... Rfe8 {[%clk 0:00:23.1]}
43. g4 {[%clk 0:00:04.9]} 43... Ne4 {[%clk 0:00:20.2]} 44. R2xd5 {[%clk
0:00:03.9]} 44... Nxd6 {[%clk 0:00:19.9]} 45. Rxd6 {[%clk 0:00:02.4]} 45... Re2
{[%clk 0:00:19.8]} 46. Kg3 {[%clk 0:00:01.5]} 46... R8e3+ {[%clk 0:00:19.8]} 47.
Bf3 {[%clk 0:00:01.9]} 47... Ra2 {[%clk 0:00:18.7]} 48. Kf4 {[%clk 0:00:02.1]}
48... Raa3 {[%clk 0:00:17.7]} 49. Be4+ {[%clk 0:00:02.4]} 49... Kg8 {[%clk
0:00:18]} 0-1

[Event "*** Titled Tuesday Blitz"]
[Site "Chess.com"]
[Date "2021.04.06"]
[Round "8"]
[White "chessbia"]
[Black "Rondo_Capriccioso"]
[Result "0-1"]
[WhiteElo "2335"]
[BlackElo "2485"]
[TimeControl "180+1"]
[EndTime "11:29:47 PDT"]
[Termination "Rondo_Capriccioso won on time"]

1. d4 {[%clk 0:03:00.9]} 1... Nf6 {[%clk 0:02:59.7]} 2. c4 {[%clk 0:03:00.3]}
2... g6 {[%clk 0:02:58.8]} 3. Nc3 {[%clk 0:03:00]} 3... Bg7 {[%clk 0:02:59.7]}
4. e4 {[%clk 0:02:58.6]} 4... d6 {[%clk 0:03:00.6]} 5. h3 {[%clk 0:02:58]} 5...
c5 {[%clk 0:02:58.6]} 6. Nf3 {[%clk 0:02:56.1]} 6... O-O {[%clk 0:02:56.9]} 7.
Be3 {[%clk 0:02:52.8]} 7... cxd4 {[%clk 0:02:43.9]} 8. Nxd4 {[%clk 0:02:52.3]}
8... Nc6 {[%clk 0:02:44.8]} 9. Be2 {[%clk 0:02:48.3]} 9... Bd7 {[%clk
0:02:42.2]} 10. O-O {[%clk 0:02:46.5]} 10... Rc8 {[%clk 0:02:38.2]} 11. Rc1
{[%clk 0:02:43.8]} 11... a6 {[%clk 0:02:13.2]} 12. a3 {[%clk 0:02:33.8]} 12...
Ne5 {[%clk 0:01:59.2]} 13. b3 {[%clk 0:02:31.9]} 13... Qa5 {[%clk 0:01:45.2]}
14. a4 {[%clk 0:02:27.4]} 14... Rfd8 {[%clk 0:01:39.4]} 15. f4 {[%clk
0:02:24.6]} 15... Nc6 {[%clk 0:01:38.6]} 16. Bf3 {[%clk 0:02:06.4]} 16... Nxd4
{[%clk 0:01:31.6]} 17. Bxd4 {[%clk 0:02:04.9]} 17... Bc6 {[%clk 0:01:15.2]} 18.
Nd5 {[%clk 0:01:42]} 18... Nxd5 {[%clk 0:00:56.7]} 19. exd5 {[%clk 0:01:42.9]}
19... Bd7 {[%clk 0:00:56.2]} 20. Bxg7 {[%clk 0:01:42.4]} 20... Kxg7 {[%clk
0:00:57.1]} 21. Re1 {[%clk 0:01:32]} 21... Re8 {[%clk 0:00:55.3]} 22. Qd4+
{[%clk 0:01:22.1]} 22... Kg8 {[%clk 0:00:55.4]} 23. Kh2 {[%clk 0:01:18.7]} 23...
Qb4 {[%clk 0:00:55.7]} 24. Rc3 {[%clk 0:01:08.8]} 24... b5 {[%clk 0:00:54.2]}
25. axb5 {[%clk 0:01:08.5]} 25... axb5 {[%clk 0:00:55.1]} 26. h4 {[%clk
0:00:56.8]} 26... bxc4 {[%clk 0:00:53.9]} 27. bxc4 {[%clk 0:00:57.7]} 27... h5
{[%clk 0:00:43.3]} 28. Be4 {[%clk 0:00:25.2]} 28... Qc5 {[%clk 0:00:30.3]} 29.
Qd3 {[%clk 0:00:18.6]} 29... Kg7 {[%clk 0:00:26.8]} 30. Re3 {[%clk 0:00:18]}
30... Rb8 {[%clk 0:00:22.2]} 31. Rg3 {[%clk 0:00:17.7]} 31... Rb2 {[%clk
0:00:22]} 32. Bxg6 {[%clk 0:00:17]} 32... Kf6 {[%clk 0:00:15.5]} 33. Bxf7 {[%clk
0:00:14.2]} 33... Bf5 {[%clk 0:00:16.1]} 34. Qe3 {[%clk 0:00:11.7]} 34... Kxf7
{[%clk 0:00:15.4]} 35. Qf3 {[%clk 0:00:09.9]} 35... Bg4 {[%clk 0:00:14.4]} 36.
Qe4 {[%clk 0:00:07.9]} 36... Rg8 {[%clk 0:00:14.4]} 37. Rce3 {[%clk 0:00:05.9]}
37... Qc7 {[%clk 0:00:12.7]} 38. Qh7+ {[%clk 0:00:03.9]} 38... Rg7 {[%clk
0:00:12.5]} 39. Qe4 {[%clk 0:00:03.4]} 39... Qd7 {[%clk 0:00:12.8]} 40. f5
{[%clk 0:00:03.3]} 40... Rf2 {[%clk 0:00:10.8]} 41. Qe6+ {[%clk 0:00:02.5]}
41... Qxe6 {[%clk 0:00:10.6]} 42. fxe6+ {[%clk 0:00:03.2]} 42... Kf6 {[%clk
0:00:11.2]} 43. c5 {[%clk 0:00:03.1]} 43... dxc5 {[%clk 0:00:10.9]} 44. Rc3
{[%clk 0:00:03]} 44... Ke5 {[%clk 0:00:09.4]} 45. Rxc5 {[%clk 0:00:03.1]} 45...
Kd6 {[%clk 0:00:10.1]} 46. Ra5 {[%clk 0:00:03]} 46... Rg6 {[%clk 0:00:09]} 47.
Rc3 {[%clk 0:00:01.4]} 47... Bf3 {[%clk 0:00:08.7]} 0-1

[Event "*** Titled Tuesday Blitz"]
[Site "Chess.com"]
[Date "2021.04.06"]
[Round "8"]
[White "frenchpin"]
[Black "Forantes"]
[Result "1-0"]
[WhiteElo "2505"]
[BlackElo "2351"]
[TimeControl "180+1"]
[EndTime "11:29:47 PDT"]
[Termination "frenchpin won by checkmate"]

1. e4 {[%clk 0:02:56.2]} 1... c5 {[%clk 0:02:59.5]} 2. Nf3 {[%clk 0:02:55.3]}
2... Nc6 {[%clk 0:03:00.1]} 3. c3 {[%clk 0:02:50.9]} 3... d5 {[%clk 0:02:58.8]}
4. exd5 {[%clk 0:02:49.4]} 4... Qxd5 {[%clk 0:02:59.7]} 5. d4 {[%clk 0:02:46.7]}
5... Bg4 {[%clk 0:02:58.9]} 6. dxc5 {[%clk 0:02:46]} 6... Qxd1+ {[%clk 0:02:47]}
7. Kxd1 {[%clk 0:02:46.9]} 7... e5 {[%clk 0:02:45.7]} 8. b4 {[%clk 0:02:45.7]}
8... O-O-O+ {[%clk 0:02:26]} 9. Kc2 {[%clk 0:02:45]} 9... Bf5+ {[%clk
0:02:26.1]} 10. Kb3 {[%clk 0:02:44.4]} 10... e4 {[%clk 0:02:25.3]} 11. Ng5
{[%clk 0:02:42.2]} 11... Ne5 {[%clk 0:02:18.4]} 12. Bf4 {[%clk 0:02:36.1]} 12...
Nd3 {[%clk 0:02:11.4]} 13. Bxd3 {[%clk 0:02:32.6]} 13... exd3 {[%clk 0:02:10.4]}
14. Nd2 {[%clk 0:02:27.9]} 14... f6 {[%clk 0:02:06]} 15. Nge4 {[%clk 0:02:25.2]}
15... b6 {[%clk 0:01:27.5]} 16. Nd6+ {[%clk 0:02:08.2]} 16... Bxd6 {[%clk
0:01:25.7]} 17. cxd6 {[%clk 0:02:09.1]} 17... g5 {[%clk 0:01:22.3]} 18. Bg3
{[%clk 0:02:08.1]} 18... h5 {[%clk 0:01:22.5]} 19. h3 {[%clk 0:02:07.7]} 19...
Nh6 {[%clk 0:01:15.2]} 20. c4 {[%clk 0:02:06.9]} 20... Nf7 {[%clk 0:01:12.8]}
21. c5 {[%clk 0:02:06.5]} 21... bxc5 {[%clk 0:01:12.8]} 22. bxc5 {[%clk
0:02:07.4]} 22... Kb7 {[%clk 0:01:12]} 23. Kc4 {[%clk 0:02:04.2]} 23... Ne5+
{[%clk 0:00:52.3]} 24. Bxe5 {[%clk 0:02:02.1]} 24... fxe5 {[%clk 0:00:53.2]} 25.
Kd5 {[%clk 0:02:00.6]} 25... Rh6 {[%clk 0:00:18.4]} 26. Rab1+ {[%clk 0:02:00]}
26... Ka8 {[%clk 0:00:18.2]} 27. Kxe5 {[%clk 0:01:50.9]} 27... Bd7 {[%clk
0:00:17.6]} 28. Rhe1 {[%clk 0:01:44.1]} 28... Bc6 {[%clk 0:00:14.1]} 29. Kd4
{[%clk 0:01:42.8]} 29... Bxg2 {[%clk 0:00:14.1]} 30. Kxd3 {[%clk 0:01:41.1]}
30... g4 {[%clk 0:00:14.4]} 31. h4 {[%clk 0:01:32.8]} 31... Rf6 {[%clk
0:00:13.4]} 32. Re5 {[%clk 0:01:26.2]} 32... Rxf2 {[%clk 0:00:12.2]} 33. Rbe1
{[%clk 0:01:24.5]} 33... Bc6 {[%clk 0:00:11.1]} 34. Rxh5 {[%clk 0:01:19.2]}
34... g3 {[%clk 0:00:11.2]} 35. Rg5 {[%clk 0:01:07.2]} 35... g2 {[%clk
0:00:11.4]} 36. h5 {[%clk 0:01:05.6]} 36... a5 {[%clk 0:00:09.7]} 37. h6 {[%clk
0:00:35.2]} 37... Rh8 {[%clk 0:00:08]} 38. Re6 {[%clk 0:00:35.1]} 38... Bb5+
{[%clk 0:00:05.8]} 39. Kc3 {[%clk 0:00:32.1]} 39... Bc6 {[%clk 0:00:02.2]} 40.
Reg6 {[%clk 0:00:31.4]} 40... Re2 {[%clk 0:00:02.6]} 41. Rg8+ {[%clk 0:00:30.6]}
41... Rxg8 {[%clk 0:00:02.8]} 42. Rxg8+ {[%clk 0:00:31.4]} 42... Ka7 {[%clk
0:00:03.6]} 43. h7 {[%clk 0:00:29.1]} 43... g1=Q {[%clk 0:00:03.8]} 44. Rxg1
{[%clk 0:00:27.7]} 44... Rh2 {[%clk 0:00:04.3]} 45. Rg7+ {[%clk 0:00:26.7]}
45... Ka6 {[%clk 0:00:04.8]} 46. Nc4 {[%clk 0:00:23.6]} 46... a4 {[%clk
0:00:04.1]} 47. Ne5 {[%clk 0:00:23.5]} 47... Bb5 {[%clk 0:00:01.9]} 48. Ng6
{[%clk 0:00:22.4]} 48... a3 {[%clk 0:00:01.9]} 49. h8=Q {[%clk 0:00:21.7]} 49...
Rg2 {[%clk 0:00:01.9]} 50. Qa8# {[%clk 0:00:10.6]} 1-0

[Event "*** Titled Tuesday Blitz"]
[Site "Chess.com"]
[Date "2021.04.06"]
[Round "8"]
[White "beto-betun"]
[Black "SanchezKelvin"]
[Result "1-0"]
[WhiteElo "2234"]
[BlackElo "2491"]
[TimeControl "180+1"]
[EndTime "11:29:47 PDT"]
[Termination "beto-betun won on time"]

1. d4 {[%clk 0:03:00.9]} 1... d5 {[%clk 0:02:59.1]} 2. Nf3 {[%clk 0:02:59.3]}
2... Nf6 {[%clk 0:02:58.9]} 3. g3 {[%clk 0:02:59.1]} 3... c6 {[%clk 0:02:58.6]}
4. Bg2 {[%clk 0:02:47.9]} 4... Nbd7 {[%clk 0:02:58.1]} 5. O-O {[%clk 0:02:48.5]}
5... e6 {[%clk 0:02:47.7]} 6. c4 {[%clk 0:02:43.6]} 6... dxc4 {[%clk 0:02:47.4]}
7. Qc2 {[%clk 0:02:38.2]} 7... b5 {[%clk 0:02:46.9]} 8. a4 {[%clk 0:02:36.7]}
8... Bb7 {[%clk 0:02:45.3]} 9. Rd1 {[%clk 0:02:31]} 9... a6 {[%clk 0:02:44.7]}
10. Ne5 {[%clk 0:02:23.7]} 10... Qc8 {[%clk 0:02:34.1]} 11. axb5 {[%clk
0:02:03.5]} 11... cxb5 {[%clk 0:02:32.1]} 12. Nc3 {[%clk 0:01:47.6]} 12... Be7
{[%clk 0:02:28.1]} 13. Nxd7 {[%clk 0:01:31.7]} 13... Nxd7 {[%clk 0:02:26.6]} 14.
e4 {[%clk 0:01:26.9]} 14... O-O {[%clk 0:02:22.8]} 15. Bf4 {[%clk 0:01:22.6]}
15... Re8 {[%clk 0:02:10]} 16. h4 {[%clk 0:01:21]} 16... Bb4 {[%clk 0:01:52.4]}
17. h5 {[%clk 0:01:19.7]} 17... Bxc3 {[%clk 0:01:49.3]} 18. bxc3 {[%clk
0:01:20.6]} 18... e5 {[%clk 0:01:49.1]} 19. Be3 {[%clk 0:01:13.2]} 19... Nf6
{[%clk 0:01:46.6]} 20. d5 {[%clk 0:01:11]} 20... Nxh5 {[%clk 0:01:39.8]} 21. Bf3
{[%clk 0:01:03.1]} 21... Nf6 {[%clk 0:01:38]} 22. Kg2 {[%clk 0:01:02]} 22... Qc7
{[%clk 0:01:11.5]} 23. Rh1 {[%clk 0:01:00.4]} 23... a5 {[%clk 0:01:00.7]} 24.
Rab1 {[%clk 0:00:56.5]} 24... Ba6 {[%clk 0:00:59.1]} 25. Bg5 {[%clk 0:00:45.1]}
25... Nd7 {[%clk 0:00:57.5]} 26. Qd2 {[%clk 0:00:42.1]} 26... Qd6 {[%clk
0:00:54.8]} 27. Rh4 {[%clk 0:00:27.7]} 27... Nf8 {[%clk 0:00:50.9]} 28. Rbh1
{[%clk 0:00:26.5]} 28... b4 {[%clk 0:00:47.7]} 29. Bg4 {[%clk 0:00:20.6]} 29...
bxc3 {[%clk 0:00:44.4]} 30. Qxc3 {[%clk 0:00:20]} 30... Qb4 {[%clk 0:00:44.5]}
31. Qf3 {[%clk 0:00:18.8]} 31... c3 {[%clk 0:00:36.1]} 32. Bf5 {[%clk
0:00:18.2]} 32... g6 {[%clk 0:00:23.8]} 33. Bf6 {[%clk 0:00:17]} 33... c2 {[%clk
0:00:20.4]} 34. Qe3 {[%clk 0:00:16.1]} 34... c1=Q {[%clk 0:00:08.1]} 35. Rxc1
{[%clk 0:00:14.5]} 35... Nd7 {[%clk 0:00:07.5]} 36. Bh8 {[%clk 0:00:12]} 36...
Kxh8 {[%clk 0:00:06.1]} 37. Rxh7+ {[%clk 0:00:10.7]} 37... Kxh7 {[%clk
0:00:06.4]} 38. Rh1+ {[%clk 0:00:11.3]} 38... Kg7 {[%clk 0:00:06.9]} 39. Qh6+
{[%clk 0:00:11.8]} 39... Kf6 {[%clk 0:00:07.3]} 40. Qh4+ {[%clk 0:00:07.5]}
40... g5 {[%clk 0:00:07.5]} 41. Qh6+ {[%clk 0:00:05.9]} 41... Ke7 {[%clk
0:00:07.5]} 42. Qxg5+ {[%clk 0:00:06.4]} 42... Kd6 {[%clk 0:00:05.9]} 43. Rh6+
{[%clk 0:00:06.5]} 43... Kc5 {[%clk 0:00:05.6]} 44. Bxd7 {[%clk 0:00:06.6]}
44... Rg8 {[%clk 0:00:03.9]} 45. Qxe5 {[%clk 0:00:05.7]} 45... Bb5 {[%clk
0:00:01.8]} 46. Qe7+ {[%clk 0:00:06.1]} 46... Kc4 {[%clk 0:00:02]} 47. Qxf7
{[%clk 0:00:06.2]} 1-0